bitfinex-derivatives/quotes_SOLF0:USTF0_20260210
["timestamp","ask_amount","ask_price","bid_price","bid_amount"]
[1770707863525,3.58679981,84.53,84.487,33.47794754]
[1770707865224,3.58679981,84.52,84.487,33.47794754]
[1770707865824,3.58679981,84.53,84.487,33.47794754]
[1770707867131,3.58679981,84.52,84.487,33.47794754]
[1770707870229,3.58679981,84.53,84.496,28.97132192]
[1770707871636,30.24522943,84.538,84.496,28.97132192]
[1770707871836,3.58679981,84.53,84.496,28.97132192]
[1770707872637,3.58679981,84.53,84.47,3.58679981]
[1770707872638,3.58679981,84.52,84.486,10.6633]
[1770707873037,3.58679981,84.52,84.487,28.97132192]
[1770707874143,3.58679981,84.52,84.492,10.6624]
[1770707874531,33.83202924,84.53,84.492,10.6624]
[1770707875538,33.83202924,84.53,84.492,39.63372192]
[1770707877738,3.58679981,84.52,84.492,39.63372192]
[1770707877942,3.58679981,84.54,84.496,28.97132192]
[1770707878941,3.58591098,84.54,84.496,28.97132192]
[1770707879437,3.58591098,84.54,84.498,28.97132192]
[1770707880043,3.58591098,84.55,84.502,28.97132192]
[1770707880441,3.58591098,84.56,84.502,28.97132192]
[1770707880635,8.38694225,84.559,84.502,28.97132192]
[1770707880939,3.58591098,84.55,84.517,28.97132192]
[1770707881747,3.58591098,84.54,84.506,28.97132192]
[1770707881940,3.58591098,84.53,84.493,28.97132192]
[1770707882138,3.58591098,84.52,84.48,28.97132192]
[1770707882340,3.58591098,84.52,84.484,10.6635]
[1770707882941,3.58774742,84.52,84.484,10.6635]
[1770707883244,10.57517331,84.548,84.489,28.97132192]
[1770707883245,3.58774742,84.53,84.489,28.97132192]
[1770707883645,30.24522943,84.542,84.489,28.97132192]
[1770707883847,3.58774742,84.53,84.489,28.97132192]
[1770707884041,3.58774742,84.53,84.499,28.97132192]
[1770707886148,8.37688954,84.529,84.499,28.97132192]
[1770707886345,3.58774742,84.53,84.499,28.97132192]
[1770707886544,8.37810122,84.529,84.499,28.97132192]
[1770707886746,3.58774742,84.53,84.499,28.97132192]
[1770707887046,3.58774742,84.52,84.479,28.97132192]
[1770707887548,3.58774742,84.51,84.479,28.97132192]
[1770707888650,3.58774742,84.52,84.48,39.63532192]
[1770707888853,3.58774742,84.52,84.481,28.97132192]
[1770707889749,3.58774742,84.52,84.487,10.6631]
[1770707890255,3.58774742,84.52,84.481,28.97132192]
[1770707890456,3.58774742,84.51,84.481,28.97132192]
[1770707893049,3.58774742,84.52,84.481,28.97132192]
[1770707893248,3.58774742,84.51,84.481,28.97132192]
[1770707893958,3.58774742,84.52,84.483,28.97132192]
[1770707895555,11.96919353,84.54,84.503,28.97132192]
[1770707895757,3.58774742,84.53,84.503,28.97132192]
[1770707896759,3.58774742,84.54,84.503,28.97132192]
[1770707897763,30.24522943,84.549,84.506,28.97132192]
[1770707897964,8.39445462,84.548,84.506,28.97132192]
[1770707898161,30.24522943,84.549,84.506,28.97132192]
[1770707898162,3.58774742,84.54,84.506,28.97132192]
[1770707899260,3.58774742,84.54,84.507,39.63192192]
[1770707899461,30.24522943,84.549,84.507,39.63192192]
[1770707899660,3.58774742,84.54,84.507,39.63192192]
[1770707899860,3.58774742,84.55,84.508,26.2648689]
[1770707900058,26.87623153,84.563,84.511,26.2648689]
[1770707900059,3.58774742,84.56,84.511,26.2648689]
[1770707900262,8.39101593,84.559,84.511,26.2648689]
[1770707900466,3.58774742,84.56,84.511,26.2648689]
[1770707900664,8.38783485,84.559,84.511,26.2648689]
[1770707900866,3.58774742,84.57,84.527,26.2648689]
[1770707901069,8.38845497,84.569,84.527,26.2648689]
[1770707901258,3.58774742,84.57,84.527,26.2648689]
[1770707901764,3.58774742,84.57,84.529,26.66475514]
[1770707903859,27.27658283,84.574,84.53,10.6577]
[1770707904066,3.58774742,84.57,84.53,10.6577]
[1770707905176,3.58774742,84.56,84.53,10.6577]
[1770707906576,3.58774742,84.56,84.529,26.66475514]
[1770707908467,3.58774742,84.57,84.529,26.66475514]
[1770707909577,3.58774742,84.58,84.535,10.657]
[1770707909778,3.58774742,84.58,84.536,26.66475514]
[1770707910179,3.58774742,84.58,84.538,26.66475514]
[1770707911872,3.58774742,84.57,84.538,26.66475514]
[1770707913480,3.58774742,84.57,84.541,10.6562]
[1770707913779,3.58774742,84.57,84.538,26.66475514]
[1770707913967,37.92818283,84.579,84.522,26.66475514]
[1770707913968,3.58774742,84.56,84.522,26.66475514]
[1770707914372,3.58774742,84.57,84.522,26.66475514]
[1770707916480,3.58774742,84.56,84.522,26.66475514]
[1770707917278,3.58774742,84.57,84.522,26.66475514]
[1770707917878,3.58774742,84.54,84.501,26.66475514]
[1770707918278,3.58774742,84.53,84.501,26.66475514]
[1770707920374,3.58774742,84.51,84.474,26.66475514]
[1770707920677,27.27658283,84.526,84.474,26.66475514]
[1770707920880,3.58774742,84.52,84.474,26.66475514]
[1770707921881,3.58774742,84.51,84.474,26.66475514]
[1770707922677,27.27658283,84.54,84.474,26.66475514]
[1770707922886,3.58774742,84.53,84.481,26.66475514]
[1770707923380,3.58774742,84.52,84.481,26.66475514]
[1770707923880,3.58774742,84.51,84.481,26.66475514]
[1770707926285,3.58774742,84.52,84.481,26.66475514]
[1770707928581,3.58774742,84.53,84.481,26.66475514]
[1770707929084,27.27658283,84.541,84.481,26.66475514]
[1770707929382,3.58774742,84.54,84.492,26.66475514]
[1770707930089,3.58774742,84.54,84.502,23.57828479]
[1770707930390,3.58774742,84.55,84.502,23.57828479]
[1770707930987,3.58774742,84.55,84.505,23.57828479]
[1770707932578,3.58774742,84.55,84.506,10.6607]
[1770707932783,3.58774742,84.55,84.507,23.57828479]
[1770707932992,3.58774742,84.56,84.507,23.57828479]
[1770707933190,3.58774742,84.56,84.511,23.57828479]
[1770707933691,3.58774742,84.56,84.519,10.659]
[1770707933889,3.58774742,84.56,84.52,23.57828479]
[1770707934186,3.58774742,84.58,84.52,27.16603221]
[1770707934592,3.58774742,84.58,84.529,10.6577]
[1770707934593,25.3152717,84.579,84.529,10.6577]
[1770707934792,3.58774742,84.57,84.529,10.6577]
[1770707935182,25.3152717,84.579,84.532,34.23568479]
[1770707935383,3.58774742,84.56,84.532,23.57828479]
[1770707935789,3.58774742,84.56,84.516,23.57828479]
[1770707936789,25.3152717,84.567,84.51,3.58774742]
[1770707936790,25.3152717,84.586,84.528,23.57828479]
[1770707936988,3.58774742,84.57,84.528,23.57828479]
[1770707937702,3.58774742,84.57,84.53,23.57828479]
[1770707940502,3.58774742,84.58,84.533,23.57828479]
[1770707941201,3.58774742,84.58,84.535,23.57828479]
[1770707941406,10.6507,84.587,84.535,23.57828479]
[1770707942905,10.6507,84.587,84.53,3.58774742]
[1770707942906,10.6507,84.587,84.539,23.57828479]
[1770707943296,3.58191169,84.59,84.539,23.57828479]
[1770707943499,3.58191169,84.58,84.539,23.57828479]
[1770707945008,3.58191169,84.58,84.455,29.27499144]
[1770707945009,25.3152717,84.569,84.526,23.57828479]
[1770707946395,3.58191169,84.57,84.526,23.57828479]
[1770707946599,3.58191169,84.58,84.528,23.57828479]
[1770707946905,3.58191169,84.58,84.531,23.57828479]
[1770707947400,3.58191169,84.59,84.536,23.57828479]
[1770707948809,3.58191169,84.59,84.53,3.58191169]
[1770707948810,3.58191169,84.59,84.54,23.57828479]
[1770707949502,3.58191169,84.59,84.544,10.6559]
[1770707949692,3.58191169,84.59,84.545,23.57828479]
[1770707950709,3.58191169,84.59,84.547,23.57828479]
[1770707950904,28.89718339,84.61,84.547,23.57828479]
[1770707951099,3.58191169,84.6,84.551,23.57828479]
[1770707951703,3.58191169,84.6,84.559,23.57828479]
[1770707952292,3.58191169,84.59,84.559,23.57828479]
[1770707952601,28.89718339,84.58,84.545,10.6557]
[1770707953701,25.3152717,84.596,84.549,23.57828479]
[1770707954704,25.3152717,84.596,84.553,23.57828479]
[1770707955513,2.05754626,84.627,84.54,3.58191169]
[1770707955514,3.58191169,84.58,84.54,23.57828479]
[1770707956598,25.3152717,84.589,84.54,23.57828479]
[1770707956794,25.3152717,84.589,84.542,23.57828479]
[1770707957010,3.58191169,84.58,84.542,23.57828479]
[1770707957906,3.58191169,84.58,84.545,10.6558]
[1770707962403,3.58191169,84.58,84.547,10.6556]
[1770707962602,25.3152717,84.589,84.547,10.6556]
[1770707963712,25.3152717,84.589,84.547,33.97197084]
[1770707963909,25.3152717,84.589,84.548,23.31637084]
[1770707964212,3.58191169,84.59,84.55,23.31637084]
[1770707967007,22.25698834,84.579,84.539,23.31637084]
[1770707967410,3.58191169,84.58,84.539,23.31637084]
[1770707967710,3.58191169,84.59,84.55,23.31637084]
[1770707967907,22.25698834,84.608,84.55,26.89828253]
[1770707968712,22.25698834,84.608,84.561,23.31637084]
[1770707968909,107.0,84.626,84.509,21.3207]
[1770707968910,3.58191169,84.59,84.548,23.31637084]
[1770707969308,3.58191169,84.58,84.548,23.31637084]
[1770707972817,25.83890003,84.58,84.537,10.6568]
[1770707973318,25.83890003,84.58,84.544,10.6559]
[1770707973720,25.83890003,84.58,84.544,33.97227084]
[1770707974120,25.83890003,84.58,84.546,33.97197084]
[1770707976126,3.58191169,84.58,84.546,33.97197084]
[1770707980117,3.58191169,84.58,84.547,23.31637084]
[1770707981815,3.58191169,84.59,84.547,23.31637084]
[1770707982020,3.58191169,84.6,84.547,23.31637084]
[1770707982818,10.6493,84.597,84.55,23.31637084]
[1770707983621,3.58191169,84.59,84.55,23.31637084]
[1770707988224,22.25698834,84.579,84.536,23.31637084]
[1770707988430,3.58191169,84.57,84.536,23.31637084]
[1770707988731,3.58191169,84.56,84.536,23.31637084]
[1770707990129,3.58191169,84.57,84.536,23.31637084]
[1770707992728,3.58330002,84.57,84.536,23.31637084]
[1770707995229,22.25698834,84.579,84.536,23.31637084]
[1770707996632,3.58330002,84.57,84.536,23.31637084]
[1770707997936,107.0,84.596,84.536,23.31637084]
[1770707997937,20.5555493,84.587,84.536,23.31637084]
[1770707998232,3.58330002,84.58,84.536,23.31637084]
[1770707999328,3.58330002,84.57,84.536,23.31637084]
[1770708000335,3.58330002,84.58,84.536,33.97327084]
[1770708000539,20.5555493,84.587,84.537,20.97763155]
[1770708001240,3.58330002,84.58,84.537,20.97763155]
[1770708003745,10.6517,84.579,84.537,20.97763155]
[1770708007246,10.6529,84.569,84.537,20.97763155]
[1770708008744,20.5555493,84.579,84.537,20.97763155]
[1770708019064,20.5555493,84.579,84.539,20.97763155]
[1770708020057,20.5555493,84.579,84.541,18.20792875]
[1770708020259,3.58241437,84.58,84.541,18.20792875]
[1770708021761,3.58241437,84.58,84.547,10.6555]
[1770708022264,21.01780659,84.58,84.547,10.6555]
[1770708022767,21.01780659,84.58,84.548,18.05301868]
[1770708023061,21.01780659,84.58,84.549,28.70831868]
[1770708023259,17.43539222,84.58,84.549,28.70831868]
[1770708023461,3.58241437,84.59,84.55,18.05301868]
[1770708023769,3.58241437,84.6,84.56,18.05301868]
[1770708024663,3.58241437,84.59,84.56,18.05301868]
[1770708024866,3.58241437,84.59,84.561,10.6538]
[1770708025368,21.01780659,84.6,84.561,10.6538]
[1770708026966,21.01780659,84.6,84.569,10.6528]
[1770708027168,21.01780659,84.6,84.561,18.05301868]
[1770708027467,3.58241437,84.58,84.541,18.05301868]
[1770708027669,3.58241437,84.57,84.549,10.6552]
[1770708027863,3.58241437,84.57,84.541,18.05301868]
[1770708028970,107.0,84.593,84.508,18.05301868]
[1770708028971,3.58241437,84.55,84.508,18.05301868]
[1770708033671,3.58241437,84.55,84.51,18.05301868]
[1770708035378,3.58241437,84.55,84.481,18.05301868]
[1770708035379,3.58241437,84.53,84.481,18.05301868]
[1770708036676,3.58241437,84.53,84.494,18.05301868]
[1770708037071,3.58241437,84.55,84.494,18.05301868]
[1770708037270,3.58241437,84.56,84.515,18.05301868]
[1770708037871,10.80881304,84.585,84.515,18.05301868]
[1770708037872,3.58241437,84.55,84.515,18.05301868]
[1770708038381,3.58241437,84.56,84.519,10.659]
[1770708038678,3.58241437,84.56,84.52,18.05301868]
[1770708039080,17.43539222,84.571,84.52,18.05301868]
[1770708039279,3.58241437,84.56,84.52,18.05301868]
[1770708042673,3.58241437,84.56,84.524,18.05301868]
[1770708043278,3.58241437,84.56,84.526,10.6581]
[1770708044581,3.58241437,84.56,84.526,28.71111868]
[1770708046075,3.58241437,84.55,84.526,18.05301868]
[1770708046271,21.01780659,84.56,84.526,18.05301868]
[1770708046683,3.58241437,84.56,84.526,18.05301868]
[1770708049786,3.58241437,84.56,84.461,29.50454575]
[1770708049787,3.58241437,84.55,84.503,15.95903552]
[1770708049982,15.6191303,84.557,84.503,15.95903552]
[1770708050380,15.6191303,84.557,84.511,15.95903552]
[1770708050582,10.6535,84.564,84.511,15.95903552]
[1770708051585,10.6535,84.564,84.521,15.95903552]
[1770708051889,15.6191303,84.568,84.521,15.95903552]
[1770708052093,10.6519,84.576,84.521,15.95903552]
[1770708054391,10.6519,84.576,84.517,10.6593]
[1770708054392,10.6519,84.576,84.531,15.95903552]
[1770708054690,15.6191303,84.579,84.531,15.95903552]
[1770708058287,15.6191303,84.591,84.532,15.95903552]
[1770708058495,15.6191303,84.602,84.551,15.95903552]
[1770708058997,15.6191303,84.602,84.562,15.95903552]
[1770708059383,3.58241437,84.61,84.562,15.95903552]
[1770708059700,15.6191303,84.613,84.565,15.95903552]
[1770708059991,15.6191303,84.613,84.57,3.58241437]
[1770708060195,15.6191303,84.629,84.581,15.95903552]
[1770708060794,15.6191303,84.629,84.583,15.95903552]
[1770708061489,15.6191303,84.629,84.585,15.95903552]
[1770708063598,15.6191303,84.629,84.587,15.95903552]
[1770708064793,15.6191303,84.629,84.589,15.95903552]
[1770708065397,15.6191303,84.619,84.579,10.6515]
[1770708066086,3.58241437,84.62,84.583,15.95903552]
[1770708066498,3.58241437,84.62,84.584,10.6509]
[1770708066687,15.6191303,84.629,84.585,15.95903552]
[1770708067698,3.57848074,84.62,84.586,10.6506]
[1770708068700,15.6191303,84.628,84.59,15.95903552]
[1770708069103,2.05682268,84.667,84.59,15.95903552]
[1770708069104,15.6191303,84.639,84.59,19.53751626]
[1770708070690,15.6191303,84.639,84.604,15.95903552]
[1770708071090,15.6191303,84.639,84.591,15.95903552]
[1770708072700,15.6191303,84.639,84.594,10.6495]
[1770708072895,15.6191303,84.639,84.595,15.95903552]
[1770708073801,15.6191303,84.639,84.599,15.95903552]
[1770708075394,15.6191303,84.639,84.601,15.95903552]
[1770708076304,15.6191303,84.658,84.611,15.95903552]
[1770708077809,15.6191303,84.658,84.619,26.60543552]
[1770708078506,15.6191303,84.658,84.626,26.60463552]
[1770708079808,15.6191303,84.658,84.618,10.6466]
[1770708080003,3.57848074,84.65,84.618,10.6466]
[1770708080308,19.60266791,84.65,84.618,10.6466]
[1770708080697,19.60266791,84.64,84.609,10.6477]
[1770708084117,3.57848074,84.65,84.618,15.62482392]
[1770708084414,15.31942866,84.659,84.618,15.62482392]
[1770708085715,15.31942866,84.659,84.629,10.6451]
[1770708085914,3.57848074,84.67,84.63,15.62482392]
[1770708086115,18.8979094,84.67,84.63,15.62482392]
[1770708086711,18.8979094,84.67,84.631,10.6449]
[1770708086915,18.8979094,84.67,84.63,15.62482392]
[1770708087819,18.8979094,84.67,84.639,10.644]
[1770708088019,18.8979094,84.67,84.63,15.62482392]
[1770708088207,18.8979094,84.66,84.611,15.62482392]
[1770708089723,18.8979094,84.66,84.63,10.6451]
[1770708093121,18.60815459,84.65,84.622,10.6461]
[1770708094322,3.57848074,84.65,84.628,10.6453]
[1770708097231,3.57848074,84.69,84.641,15.62482392]
[1770708097522,18.13600521,84.69,84.641,15.62482392]
[1770708098723,18.13600521,84.69,84.653,10.6422]
[1770708101231,14.55752447,84.69,84.66,10.6413]
[1770708101431,14.55752447,84.69,84.653,15.62482392]
[1770708101432,18.13600521,84.69,84.653,15.62482392]
[1770708101627,3.57848074,84.7,84.653,15.62482392]
[1770708102735,3.57848074,84.7,84.668,10.6403]
[1770708102930,15.25306352,84.702,84.669,15.62482392]
[1770708103132,3.57848074,84.71,84.669,15.62482392]
[1770708103525,3.57848074,84.71,84.675,15.62482392]
[1770708103730,35.52,84.75,84.675,15.62482392]
[1770708103731,3.57848074,84.72,84.675,15.62482392]
[1770708103933,15.12503408,84.727,84.675,15.62482392]
[1770708104433,15.12503408,84.727,84.692,10.6373]
[1770708105129,15.04514379,84.736,84.698,10.6365]
[1770708105334,3.57848074,84.74,84.699,15.62482392]
[1770708105635,15.04514379,84.754,84.699,15.62482392]
[1770708105836,3.57848074,84.74,84.699,15.62482392]
[1770708106833,3.57848074,84.74,84.704,10.6357]
[1770708107032,3.57848074,84.74,84.705,15.62482392]
[1770708107434,15.04514379,84.754,84.72,10.6337]
[1770708107836,3.57848074,84.76,84.721,15.62482392]
[1770708108035,14.52740017,84.767,84.721,15.62482392]
[1770708108841,14.52740017,84.767,84.733,10.6321]
[1770708109142,14.45164086,84.779,84.733,10.6321]
[1770708109536,3.56597982,84.77,84.733,10.6321]
[1770708111138,3.56597982,84.74,84.691,13.89774252]
[1770708111338,7.982e-05,84.73,84.691,13.89774252]
[1770708111535,13.89104148,84.749,84.691,13.89774252]
[1770708111536,3.56597982,84.74,84.691,13.89774252]
[1770708112031,13.89104148,84.749,84.691,13.89774252]
[1770708112231,35.52,84.804,84.708,14.70899064]
[1770708112435,3.56597982,84.75,84.708,14.70899064]
[1770708112835,35.52,84.773,84.681,14.71453548]
[1770708113035,3.56597982,84.73,84.681,14.71453548]
[1770708113235,3.56597982,84.72,84.689,10.6377]
[1770708113836,3.56597982,84.73,84.689,10.6377]
[1770708114635,3.56597982,84.73,84.681,14.71453548]
[1770708115847,0.23235104,84.736,84.681,14.71453548]
[1770708116145,3.56597982,84.73,84.681,14.71453548]
[1770708117143,3.56597982,84.73,84.683,10.6384]
[1770708117343,3.56597982,84.74,84.684,14.78932873]
[1770708117739,3.56597982,84.74,84.686,14.7906441]
[1770708118645,3.56597982,84.74,84.691,14.79301928]
[1770708119148,10.6296,84.754,84.691,14.79301928]
[1770708119335,3.56597982,84.72,84.691,14.79301928]
[1770708120137,3.56597982,84.73,84.691,14.79301928]
[1770708122844,3.56597982,84.73,84.693,10.6371]
[1770708123048,3.56597982,84.73,84.694,14.80304901]
[1770708124246,3.56597982,84.72,84.684,10.6383]
[1770708124852,3.56597982,84.71,84.665,14.76293524]
[1770708125053,3.56597982,84.69,84.665,14.76293524]
[1770708125248,3.56597982,84.69,84.641,14.76293524]
[1770708126249,3.56597982,84.69,84.642,10.6435]
[1770708126454,3.56597982,84.68,84.642,10.6435]
[1770708128257,3.56597982,84.67,84.642,10.6435]
[1770708128454,3.56597982,84.67,84.587,21.3009]
[1770708128455,3.56597982,84.67,84.631,10.6449]
[1770708128852,3.57497179,84.67,84.631,10.6449]
[1770708129550,3.57497179,84.67,84.631,25.56378214]
[1770708129751,3.57497179,84.67,84.61,3.57497179]
[1770708129752,3.57497179,84.67,84.633,10.6447]
[1770708130349,3.57497179,84.67,84.633,25.56554435]
[1770708132255,3.57497179,84.67,84.634,14.95873727]
[1770708135162,3.57497179,84.67,84.633,10.6447]
[1770708135163,3.57497179,84.65,84.601,14.96608731]
[1770708135664,3.57497179,84.65,84.565,33.04921805]
[1770708135665,3.57497179,84.66,84.616,14.94757841]
[1770708136860,3.57497179,84.66,84.622,14.94941017]
[1770708138558,3.57497179,84.66,84.626,25.44086554]
[1770708139066,3.57497179,84.66,84.627,14.79526554]
[1770708139467,3.57497179,84.67,84.628,10.6453]
[1770708139668,3.57497179,84.67,84.628,25.44906423]
[1770708140165,3.57497179,84.66,84.628,25.44906423]
[1770708140568,3.57497179,84.66,84.628,10.6453]
[1770708141470,3.57497179,84.65,84.618,10.6466]
[1770708143569,3.57497179,84.65,84.616,14.80556684]
[1770708145475,3.57497179,84.64,84.591,14.88023567]
[1770708145880,3.57497179,84.61,84.579,14.88023567]
[1770708146372,3.57497179,84.62,84.579,14.88023567]
[1770708146574,3.57497179,84.61,84.579,14.88023567]
[1770708150277,3.57497179,84.61,84.506,14.75227287]
[1770708150278,3.57497179,84.64,84.581,14.32743453]
[1770708150477,3.57497179,84.63,84.581,14.32743453]
[1770708151068,35.45,84.659,84.586,14.32743453]
[1770708151069,3.57497179,84.62,84.586,14.32743453]
[1770708153481,3.57497179,84.61,84.571,14.32743453]
[1770708153672,3.57497179,84.6,84.571,14.32743453]
[1770708156986,3.57497179,84.61,84.571,14.32743453]
[1770708157192,2.33187353,84.619,84.573,14.32743453]
[1770708157394,3.57497179,84.62,84.573,14.32743453]
[1770708157879,3.57497179,84.62,84.578,14.32743453]
[1770708159194,3.57497179,84.62,84.579,10.6515]
[1770708159394,3.57497179,84.62,84.58,14.32743453]
[1770708160889,3.57497179,84.62,84.581,10.6513]
[1770708161085,3.57497179,84.61,84.58,14.32743453]
[1770708161292,3.57497179,84.6,84.58,14.32743453]
[1770708162093,3.57497179,84.61,84.581,13.42033727]
[1770708162287,3.57497179,84.62,84.581,13.42033727]
[1770708162484,107.0,84.629,84.581,13.42033727]
[1770708162690,3.57497179,84.63,84.584,13.42033727]
[1770708162987,3.57497179,84.62,84.584,13.42033727]
[1770708163695,3.57497179,84.62,84.589,13.42033727]
[1770708179010,3.57497179,84.6,84.484,4.705e-05]
[1770708179301,236.42,84.636,84.46,3.57497179]
[1770708179302,3.57497179,84.52,84.46,3.57497179]
[1770708179508,3.57497179,84.49,84.433,10.6699]
[1770708179707,3.57497179,84.48,84.433,10.6699]
[1770708180103,44.1467472,84.505,84.41,3.57497179]
[1770708180304,3.57497179,84.47,84.41,3.57497179]
[1770708180905,10.6641,84.48,84.39,9.6207786]
[1770708181305,10.6641,84.48,84.41,30.36565244]
[1770708181506,10.6625,84.492,84.411,30.36565244]
[1770708182006,10.6611,84.504,84.425,30.36565244]
[1770708183302,9.6207786,84.51,84.429,30.35476088]
[1770708183503,9.6207786,84.53,84.451,30.63337265]
[1770708184498,9.6207786,84.53,84.466,30.62416813]
[1770708184710,10.6563,84.542,84.466,30.62416813]
[1770708185109,10.6563,84.542,84.473,30.62416813]
[1770708187503,9.6207786,84.55,84.479,30.97078003]
[1770708188104,9.6207786,84.58,84.49,9.6207786]
[1770708188406,9.6207786,84.58,84.491,30.97078003]
[1770708189706,10.6516,84.579,84.512,30.95732369]
[1770708190413,9.6207786,84.58,84.529,30.95732369]
[1770708190912,35.45,84.6,84.46,35.45]
[1770708190913,9.60496348,84.56,84.514,30.95044374]
[1770708196108,107.0,84.578,84.514,30.95044374]
[1770708196411,9.60496348,84.58,84.514,30.95044374]
[1770708196605,8.6775795,84.609,84.514,30.95044374]
[1770708196812,9.60496348,84.59,84.514,30.95044374]
[1770708197312,9.60496348,84.59,84.538,30.90361233]
[1770708198710,9.60496348,84.59,84.541,30.87228707]
[1770708199718,10.6483,84.605,84.543,30.87364708]
[1770708200012,9.60496348,84.6,84.543,30.87364708]
[1770708200516,9.60496348,84.6,84.546,30.86110511]
[1770708201717,9.60496348,84.6,84.548,41.48031968]
[1770708201917,9.60496348,84.6,84.549,30.82501968]
[1770708202116,10.6492,84.598,84.501,30.82501968]
[1770708202312,9.60496348,84.58,84.525,30.82501968]
[1770708203521,9.60496348,84.58,84.488,21.326]
[1770708203522,9.60496348,84.56,84.481,30.8498921]
[1770708204814,9.60496348,84.56,84.511,10.6601]
[1770708205014,9.60496348,84.56,84.511,41.50468919]
[1770708206813,10.6541,84.559,84.511,30.84458919]
[1770708207022,9.60496348,84.56,84.511,30.84458919]
[1770708208825,9.60496348,84.56,84.513,30.81896042]
[1770708209719,9.60496348,84.56,84.517,30.81861844]
[1770708213732,9.60496348,84.56,84.524,10.6585]
[1770708213933,9.60496348,84.56,84.525,30.8152729]
[1770708217430,9.60496348,84.56,84.529,30.81807111]
[1770708217632,10.80881304,84.612,84.529,30.81807111]
[1770708217931,8.74674603,84.611,84.529,30.81807111]
[1770708218132,8.74674603,84.61,84.529,30.81807111]
[1770708218332,8.74674603,84.609,84.529,30.81807111]
[1770708218533,8.74674603,84.608,84.529,30.81807111]
[1770708218733,10.6492,84.598,84.549,30.81363643]
[1770708219823,10.6492,84.598,84.55,10.6551]
[1770708220023,10.6492,84.598,84.55,41.44072001]
[1770708220228,8.74674603,84.597,84.55,41.44072001]
[1770708220425,8.74674603,84.597,84.552,10.6549]
[1770708220626,8.74674603,84.596,84.552,10.6549]
[1770708220830,8.74674603,84.597,84.552,10.6549]
[1770708221032,8.74674603,84.596,84.552,10.6549]
[1770708221225,8.74674603,84.595,84.552,10.6549]
[1770708221430,8.74674603,84.594,84.552,10.6549]
[1770708221634,8.74674603,84.593,84.552,10.6549]
[1770708221933,8.74674603,84.592,84.552,41.44656334]
[1770708222236,8.74674603,84.591,84.552,41.44656334]
[1770708222540,8.74674603,84.59,84.552,41.44656334]
[1770708222738,8.74674603,84.589,84.552,41.44656334]
[1770708222926,3.58291294,84.58,84.552,41.44656334]
[1770708223733,3.58291294,84.57,84.552,41.44656334]
[1770708226043,3.58291294,84.58,84.552,41.44656334]
[1770708226244,8.79771449,84.579,84.552,41.44656334]
[1770708226445,8.79771449,84.578,84.552,41.44656334]
[1770708226643,8.79771449,84.577,84.552,41.44656334]
[1770708226938,8.79771449,84.576,84.557,30.75109126]
[1770708227144,3.58291294,84.58,84.557,30.75109126]
[1770708228143,3.58291294,84.58,84.559,26.34697207]
[1770708228344,3.58291294,84.59,84.559,26.34697207]
[1770708228541,107.0,84.598,84.559,26.34697207]
[1770708229044,3.58291294,84.59,84.559,26.34697207]
[1770708229448,3.58291294,84.59,84.561,24.52835054]
[1770708230547,107.0,84.598,84.561,24.52835054]
[1770708230750,107.0,84.598,84.567,24.51820541]
[1770708231046,3.58137951,84.62,84.571,2.16297114]
[1770708231244,3.58137951,84.61,84.571,2.16297114]
[1770708232150,3.58137951,84.62,84.571,2.16297114]
[1770708232349,3.58137951,84.61,84.571,2.16297114]
[1770708232749,3.58137951,84.61,84.586,10.6506]
[1770708233949,3.58137951,84.61,84.532,165.7829]
[1770708233950,17.83089053,84.676,84.587,25.0]
[1770708234153,176.99975603,84.753,84.59,3.58137951]
[1770708234154,3.58137951,84.65,84.59,3.58137951]
[1770708234554,17.84641555,84.657,84.58,3.58137951]
[1770708234847,3.58137951,84.64,84.58,3.58137951]
[1770708235646,3.58137951,84.64,84.59,3.58137951]
[1770708236752,3.58137951,84.64,84.613,10.6472]
[1770708236955,17.84641555,84.657,84.613,10.6472]
[1770708240749,19.46744179,84.649,84.539,165.7694]
[1770708241054,19.46744179,84.649,84.55,9.5828848]
[1770708242149,19.55543992,84.664,84.623,10.646]
[1770708242349,19.55543992,84.679,84.623,10.646]
[1770708242748,19.55543992,84.679,84.633,10.6446]
[1770708251358,55.61699953,84.718,84.636,0.95055289]
[1770708251552,20.16699953,84.717,84.636,0.95055289]
[1770708251951,20.16699953,84.717,84.66,10.6413]
[1770708252153,20.16699953,84.717,84.661,1.24810951]
[1770708253860,20.16699953,84.717,84.63,9.56817435]
[1770708253861,20.16699953,84.717,84.665,1.72351998]
[1770708254456,20.16699953,84.717,84.671,1.66352915]
[1770708255350,9.56817435,84.73,84.685,1.92030858]
[1770708255555,20.26614715,84.75,84.685,1.92030858]
[1770708256159,20.26614715,84.748,84.693,2.20391195]
[1770708256460,20.2953689,84.747,84.677,2.14546845]
[1770708256960,20.2953689,84.735,84.681,10.6387]
[1770708257762,20.38923085,84.731,84.681,10.6387]
[1770708258263,20.38923085,84.731,84.681,13.15377814]
[1770708258761,20.38923085,84.731,84.691,13.36845507]